bitfinex-derivatives/quotes_BTCF0:USTF0_20240815
["timestamp","ask_amount","ask_price","bid_price","bid_amount"]
[1723682408155,0.00025419,59003.0,59002.0,0.084722]
[1723682408336,0.14025419,59003.0,59002.0,0.5208]
[1723682408533,0.22497519,59003.0,59002.0,0.5208]
[1723682408737,0.22497519,59003.0,59002.0,0.57110638]
[1723682409042,0.084728,58998.0,58997.0,0.36972]
[1723682409340,0.234728,58998.0,58997.0,0.5108]
[1723682409952,0.15,58998.0,58997.0,0.59553]
[1723682410439,0.151,58998.0,58997.0,0.59853]
[1723682410743,0.152,58998.0,58997.0,0.60553]
[1723682413547,0.236728,58998.0,58997.0,0.5208]
[1723682413847,0.236728,58998.0,58997.0,0.60553]
[1723682414043,0.152,58998.0,58997.0,0.60553]
[1723682415250,0.152,58998.0,58997.0,0.81113]
[1723682416038,0.152,58998.0,58997.0,0.89586]
[1723682416243,0.002,58998.0,58997.0,1.88907]
[1723682416548,0.152,58998.0,58997.0,1.48822701]
[1723682416741,0.152,58998.0,58997.0,1.48527396]
[1723682417340,0.002,58998.0,58997.0,1.48527396]
[1723682418346,0.002,58998.0,58997.0,0.97679396]
[1723682418551,0.002,58998.0,58997.0,1.48527396]
[1723682419158,0.152,58998.0,58997.0,0.97679396]
[1723682420357,0.152,58998.0,58997.0,0.89206396]
[1723682420648,0.152,58998.0,58997.0,0.97593945]
[1723682421653,0.152,58998.0,58997.0,0.81113]
[1723682424567,0.152,58998.0,58997.0,0.60553]
[1723682424741,1.145208,58998.0,58997.0,0.01]
[1723682424945,0.169486,58988.0,58983.0,0.44467549]
[1723682425256,0.25438128,58988.0,58983.0,0.3608]
[1723682425548,0.25438128,58988.0,58971.0,0.3610077]
[1723682425549,0.084766,58972.0,58971.0,0.3610077]
[1723682425756,0.234766,58972.0,58971.0,0.3610077]
[1723682425950,0.743486,58972.0,58971.0,0.3610077]
[1723682426354,1.27170194,58972.0,58962.0,0.0503973]
[1723682426550,0.084775,58966.0,58958.0,0.3608]
[1723682426751,0.0469,58971.0,58966.0,0.00025419]
[1723682427048,0.1969,58971.0,58966.0,0.00025419]
[1723682427253,0.08494557,58970.0,58966.0,0.00025419]
[1723682427444,0.23494557,58970.0,58966.0,0.00025419]
[1723682428354,0.15017657,58970.0,58966.0,0.00025419]
[1723682428551,0.084771,58968.0,58966.0,0.00025419]
[1723682428756,0.254771,58968.0,58966.0,0.00025419]
[1723682429559,0.17,58968.0,58967.0,0.084773]
[1723682430354,0.171,58968.0,58967.0,0.084773]
[1723682430759,0.17,58968.0,58967.0,0.084773]
[1723682431058,0.171,58968.0,58967.0,0.084773]
[1723682431951,0.172,58968.0,58967.0,0.084773]
[1723682432757,0.172,58968.0,58967.0,0.085773]
[1723682434063,0.172,58968.0,58958.0,0.3608]
[1723682434064,0.084784,58959.0,58958.0,0.3608]
[1723682434366,0.254784,58959.0,58958.0,0.3608]
[1723682435257,0.171,58959.0,58958.0,0.3618]
[1723682436163,1.525424,58959.0,58958.0,0.001]
[1723682436660,0.17972488,58959.0,58958.0,0.151]
[1723682436864,0.172,58959.0,58958.0,0.596586]
[1723682442757,0.002,58959.0,58958.0,0.596586]
[1723682446973,0.00025441,58964.0,58958.0,0.802186]
[1723682447175,0.00025441,58964.0,58963.0,0.445578]
[1723682447379,0.00025441,58964.0,58963.0,0.585578]
[1723682448074,0.00225441,58964.0,58963.0,0.585578]
[1723682449176,0.15225441,58964.0,58963.0,0.585578]
[1723682449875,0.15225441,58964.0,58963.0,0.224778]
[1723682450174,0.15225441,58964.0,58963.0,0.585578]
[1723682451966,0.15225441,58964.0,58963.0,0.224778]
[1723682452171,0.15225441,58964.0,58963.0,0.585578]
[1723682452869,0.07515649,58964.0,58963.0,0.875957]
[1723682453068,0.001,58964.0,58963.0,1.469536]
[1723682453276,0.00017657,58970.0,58969.0,0.16954]
[1723682453479,0.05037903,58984.0,58983.0,0.08475]
[1723682453678,0.05037903,58989.0,58983.0,0.80115]
[1723682453875,0.37197903,58998.0,58988.0,0.651143]
[1723682454079,0.0954,58999.0,58998.0,0.084728]
[1723682454286,0.2554,58999.0,58998.0,0.084728]
[1723682454681,0.084729,58998.0,58996.0,0.3608]
[1723682454985,0.17,58998.0,58997.0,0.084728]
[1723682455582,0.17,58998.0,58997.0,0.254728]
[1723682456885,0.00233442,59004.0,59003.0,0.084721]
[1723682457086,4.1e-07,59004.0,59003.0,1.52184642]
[1723682457279,0.41146073,59021.0,59003.0,1.46084442]
[1723682457481,0.5108,59021.0,59011.0,0.3608]
[1723682457679,0.5108,59021.0,59007.0,0.084715]
[1723682457680,0.3608,59015.0,59007.0,0.084715]
[1723682457983,0.3608,59015.0,59008.0,0.084714]
[1723682457984,0.084709,59012.0,59008.0,0.084714]
[1723682458287,0.254709,59012.0,59008.0,0.084714]
[1723682458476,0.3608,59009.0,59004.0,0.00025419]
[1723682458677,0.0456,59008.0,59004.0,0.00025419]
[1723682458888,0.1956,59008.0,59004.0,0.00025419]
[1723682459688,0.084718,59005.0,59004.0,0.00025419]
[1723682459990,0.254718,59005.0,59004.0,0.00025419]
[1723682460185,1.163158,59005.0,59004.0,0.00425419]
[1723682461678,0.174,59005.0,59004.0,0.08897419]
[1723682462491,0.174,59005.0,59004.0,0.08497419]
[1723682462682,0.176,59005.0,59004.0,0.08497419]
[1723682463084,0.174,59005.0,59004.0,0.08497419]
[1723682463285,0.007,59005.0,59004.0,0.44577419]
[1723682463481,0.167,59005.0,59004.0,0.44577419]
[1723682463792,0.166,59005.0,59004.0,0.60577419]
[1723682464588,0.163,59005.0,59004.0,0.60777419]
[1723682465485,0.163,59005.0,59004.0,0.44777419]
[1723682466185,0.16,59005.0,59004.0,0.45177419]
[1723682466388,0.16,59005.0,59004.0,0.61177419]
[1723682469093,0.244718,59005.0,59004.0,0.00625419]
[1723682469294,0.084735,58994.0,58993.0,0.3608]
[1723682469595,0.08474,58990.0,58986.0,0.36093981]
[1723682469796,0.084744,58987.0,58986.0,0.17013981]
[1723682470094,0.234744,58987.0,58986.0,0.00013981]
[1723682470290,0.084744,58987.0,58986.0,0.00013981]
[1723682470683,0.084744,58987.0,58986.0,0.01413981]
[1723682470893,0.084751,58982.0,58981.0,0.36105419]
[1723682471996,0.08489081,58982.0,58981.0,0.36505419]
[1723682473297,0.00013981,58982.0,58981.0,0.61980719]
[1723682473494,0.00013981,58982.0,58981.0,0.61680719]
[1723682474594,0.00113981,58982.0,58981.0,0.61980719]
[1723682474798,0.00213981,58982.0,58981.0,0.61980719]
[1723682475394,0.00213981,58982.0,58981.0,0.44980719]
[1723682476398,0.08689081,58982.0,58981.0,0.44980719]
[1723682476700,0.08689081,58982.0,58981.0,0.45180719]
[1723682477003,0.08689081,58982.0,58981.0,0.09100719]
[1723682477191,0.08689081,58982.0,58981.0,0.45180719]
[1723682477393,0.08589081,58982.0,58981.0,0.44580719]
[1723682477599,0.08589081,58982.0,58981.0,0.45180719]
[1723682478396,0.16964181,58982.0,58981.0,0.36405419]
[1723682478596,0.16964181,58982.0,58981.0,0.00325419]
[1723682478995,0.31964181,58982.0,58981.0,0.00325419]
[1723682479296,0.23489081,58982.0,58981.0,0.00325419]
[1723682479891,0.23489081,58982.0,58981.0,0.00225419]
[1723682480301,0.24089081,58982.0,58981.0,0.00225419]
[1723682480703,0.24689081,58982.0,58981.0,0.00125419]
[1723682482198,0.16213981,58982.0,58981.0,0.44680719]
[1723682482705,0.16213981,58982.0,58981.0,0.58680719]
[1723682486696,0.24689081,58982.0,58981.0,0.58680719]
[1723682486900,0.16213981,58982.0,58981.0,0.58680719]
[1723682487105,0.24689081,58982.0,58981.0,0.58680719]
[1723682488800,0.16213981,58982.0,58981.0,0.58680719]
[1723682489001,0.16213981,58982.0,58981.0,0.67156019]
[1723682489202,0.012,58982.0,58981.0,1.66495319]
[1723682489407,0.61543724,58998.0,58991.0,0.084738]
[1723682489408,0.00025419,58992.0,58991.0,0.084738]
[1723682489611,0.16025419,58992.0,58991.0,0.922176]
[1723682489909,0.00025419,58992.0,58991.0,0.922176]
[1723682490110,0.17025419,58992.0,58991.0,0.837438]
[1723682490604,0.17025419,58992.0,58991.0,0.838438]
[1723682490811,0.01425419,58992.0,58991.0,1.283976]
[1723682491117,0.02825419,58992.0,58991.0,2.277274]
[1723682492197,0.02825419,58992.0,58991.0,1.792536]
[1723682492398,0.18425419,58992.0,58991.0,1.792536]
[1723682492599,0.19325419,58992.0,58991.0,0.947338]
[1723682493210,0.17125419,58992.0,58991.0,0.955338]
[1723682493399,0.17125419,58992.0,58991.0,0.956338]
[1723682493400,0.17925419,58992.0,58991.0,0.956338]
[1723682493609,0.26399119,58992.0,58991.0,0.7316]
[1723682494110,0.17225419,58992.0,58991.0,0.963338]
[1723682494807,0.17125419,58992.0,58991.0,0.955338]
[1723682495014,0.17125419,58992.0,58991.0,0.957338]
[1723682495212,0.17025419,58992.0,58991.0,0.948338]
[1723682495411,0.17125419,58992.0,58991.0,0.952338]
[1723682496315,0.17025419,58992.0,58991.0,0.948338]
[1723682496515,0.17125419,58992.0,58991.0,0.953338]
[1723682496915,0.17125419,58992.0,58991.0,0.951338]
[1723682497111,0.17125419,58992.0,58991.0,0.956338]
[1723682497715,0.17125419,58992.0,58991.0,0.951338]
[1723682497914,0.17225419,58992.0,58991.0,0.596538]
[1723682500117,0.25699119,58992.0,58991.0,0.596538]
[1723682500317,0.25699119,58992.0,58991.0,0.456538]
[1723682501318,0.25699119,58992.0,58991.0,0.596538]
[1723682501319,0.17225419,58992.0,58991.0,0.596538]
[1723682501509,0.17225419,58992.0,58991.0,0.802138]
[1723682502817,0.00225419,58992.0,58991.0,0.802138]
[1723682504022,0.00225419,58992.0,58991.0,0.441338]
[1723682504323,0.00225419,58992.0,58991.0,0.802138]
[1723682506124,0.00225419,58992.0,58991.0,0.886877]
[1723682506324,0.00225419,58992.0,58991.0,0.9371975]
[1723682506918,0.00225419,58992.0,58991.0,0.596538]
[1723682508720,0.00225419,58992.0,58991.0,0.802138]
[1723682509121,0.15225419,58992.0,58991.0,0.802138]
[1723682509527,0.15225419,58992.0,58991.0,0.886877]
[1723682510217,0.00225419,58992.0,58991.0,0.886877]
[1723682510419,1.9e-07,58992.0,58991.0,1.395437]
[1723682510627,0.8694,59009.0,59007.0,0.084716]
[1723682510821,0.16,59008.0,59007.0,0.670232]
[1723682511527,0.16,59008.0,59007.0,0.585516]
[1723682511724,0.00025374,59013.0,59012.0,0.084708]
[1723682511925,0.14025374,59013.0,59012.0,0.801108]
[1723682512724,0.14025374,59013.0,59012.0,1.309468]
[1723682513323,0.14725374,59013.0,59012.0,1.309468]
[1723682513517,0.14725374,59013.0,59012.0,0.801108]
[1723682513725,0.15325374,59013.0,59012.0,1.310468]
[1723682514529,0.15325374,59013.0,59012.0,0.802108]
[1723682514728,0.15325374,59013.0,59012.0,0.85227304]
[1723682515539,0.15325374,59013.0,59012.0,0.802108]
[1723682517129,0.15325374,59013.0,59012.0,0.886817]
[1723682517523,0.15325374,59013.0,59012.0,0.93693291]
[1723682518332,0.15325374,59013.0,59012.0,0.886817]
[1723682519336,0.15325374,59013.0,59012.0,0.802108]
[1723682519526,0.15325374,59013.0,59012.0,0.3618]
[1723682519924,0.59876074,59013.0,59012.0,0.001]
[1723682520130,1.42241374,59013.0,59002.0,0.00025419]
[1723682520324,0.084716,59007.0,59002.0,0.25497719]
[1723682520529,0.045,59006.0,59005.0,0.084719]
[1723682520835,0.045,59006.0,59005.0,0.254719]
[1723682520836,0.205,59006.0,59005.0,0.254719]
[1723682522135,0.205,59006.0,59005.0,0.255719]
[1723682523239,0.205,59006.0,59005.0,0.256719]
[1723682523928,0.16,59006.0,59005.0,0.256719]
[1723682525140,0.16,59006.0,59005.0,0.26472266]
[1723682526044,0.16,59006.0,59005.0,0.62552266]
[1723682526836,0.0471,59011.0,59010.0,0.084711]
[1723682527032,0.2171,59011.0,59010.0,0.460311]
[1723682527232,0.17,59011.0,59010.0,0.821111]
[1723682528444,0.175,59011.0,59010.0,0.821111]
[1723682529140,0.18,59011.0,59010.0,0.615511]
[1723682529535,0.18,59011.0,59010.0,0.821111]
[1723682531342,0.18,59011.0,59010.0,0.615511]
[1723682532542,0.26471,59011.0,59010.0,0.5308]
[1723682532846,0.26471,59011.0,59010.0,0.17]
[1723682533238,0.084715,59008.0,59006.0,0.084717]
[1723682533435,0.0935,59007.0,59006.0,0.244717]
[1723682533636,0.2535,59007.0,59006.0,0.244717]
[1723682533836,0.338216,59007.0,59006.0,0.244717]
[1723682534031,0.338216,59007.0,59006.0,0.16]
[1723682534748,0.084717,59006.0,59005.0,0.3608]
[1723682535048,0.244717,59006.0,59005.0,0.3608]
[1723682535454,0.08473,58997.0,58996.0,0.3608]
[1723682535745,0.14,58997.0,58996.0,0.585531]
[1723682536142,0.14,58997.0,58996.0,0.224731]
[1723682537746,0.14,58997.0,58996.0,0.228731]
[1723682537945,0.14,58997.0,58996.0,0.233731]
[1723682538141,0.3608,59001.0,59000.0,0.084726]
[1723682538451,0.5108,59001.0,59000.0,0.244726]
[1723682538749,0.15,59001.0,59000.0,0.811126]
[1723682540840,0.15,59001.0,59000.0,0.450326]
[1723682541046,0.15,59001.0,59000.0,0.811126]
[1723682541246,0.15,59001.0,59000.0,0.812126]
[1723682541746,0.15,59001.0,59000.0,0.813126]
[1723682541952,0.15,59001.0,59000.0,0.815126]
[1723682542250,0.0465,59007.0,59000.0,0.815126]
[1723682542450,0.1865,59007.0,59006.0,0.5664]
[1723682542760,0.14,59007.0,59006.0,0.821117]
[1723682543845,0.25545374,59013.0,59006.0,0.821117]
[1723682543846,0.00025374,59013.0,59012.0,0.084709]
[1723682544048,7.4e-07,59013.0,59012.0,1.227767]
[1723682544350,0.0452,59024.0,59023.0,0.084693]
[1723682544555,0.0968,59031.0,59030.0,0.084683]
[1723682544744,0.2568,59031.0,59030.0,0.084683]
[1723682545947,0.3059,59031.0,59030.0,0.084683]
[1723682546254,0.3059,59031.0,59028.0,0.3608]
[1723682546255,0.084684,59029.0,59028.0,0.3608]
[1723682546453,0.244684,59029.0,59028.0,0.3608]
[1723682546965,0.244684,59029.0,59028.0,0.445486]
[1723682548449,0.174,59029.0,59028.0,0.446486]
[1723682548957,0.174,59029.0,59028.0,0.447486]
[1723682548958,0.183,59029.0,59028.0,0.447486]
[1723682550660,1.45204,59029.0,59025.0,0.00025419]
[1723682550845,1.45204,59029.0,59011.0,0.3608]
[1723682550846,0.50824,59028.0,59015.0,0.084703]
[1723682551150,0.50824,59028.0,59011.0,0.3608]
[1723682551151,0.084697,59020.0,59016.0,0.084702]
[1723682551354,0.0462,59019.0,59016.0,0.084702]
[1723682551656,0.300899,59019.0,59017.0,0.084701]
[1723682551846,0.084707,59013.0,59012.0,0.23749419]
[1723682552055,0.224707,59013.0,59012.0,0.38749419]
[1723682552355,0.15,59013.0,59012.0,0.38749419]
[1723682553863,0.15,59013.0,59012.0,0.47220219]
[1723682554350,0.153,59013.0,59012.0,0.47220219]
[1723682554549,0.156,59013.0,59012.0,0.47220219]
[1723682558254,0.156,59013.0,59012.0,0.52236185]
[1723682560964,0.156,59013.0,59012.0,0.47220219]
[1723682562062,0.240707,59013.0,59012.0,0.38749419]
[1723682562261,0.240707,59013.0,59012.0,0.15025419]
[1723682562262,0.325414,59013.0,59012.0,0.15025419]
[1723682562463,1.26996,59013.0,59002.0,0.08485549]
[1723682562665,0.3608,59010.0,59002.0,0.24485549]
[1723682562855,0.084721,59003.0,59002.0,0.24485549]
[1723682563054,0.234721,59003.0,59002.0,0.24485549]
[1723682563266,0.234721,59003.0,59002.0,0.16013249]
[1723682563451,0.234721,59003.0,59002.0,0.00013249]
[1723682564064,0.234721,59003.0,59002.0,0.00913249]
[1723682564257,0.234721,59003.0,59002.0,0.15513249]
[1723682564258,0.235721,59003.0,59002.0,0.15513249]
[1723682564965,0.235721,59003.0,59002.0,0.15113249]
[1723682565157,0.235721,59003.0,59002.0,0.23585549]
[1723682565158,0.151,59003.0,59002.0,0.23585549]
[1723682565763,0.001,59003.0,59002.0,0.82901849]
[1723682565971,0.00025419,59008.0,59007.0,0.084716]
[1723682566163,0.16025419,59008.0,59007.0,0.821116]
[1723682568164,0.16025419,59008.0,59007.0,0.615516]
[1723682568368,0.16125419,59008.0,59007.0,0.621516]
[1723682568959,0.16225419,59008.0,59007.0,0.627516]
[1723682572371,0.16225419,59008.0,59007.0,0.833116]
[1723682572758,0.16225419,59008.0,59007.0,0.627516]
[1723682576566,0.21205419,59008.0,59007.0,0.627516]
[1723682580571,0.084719,59005.0,59004.0,0.05015966]
[1723682580873,0.084721,59003.0,59002.0,0.00013249]
[1723682581074,0.244721,59003.0,59002.0,0.00013249]
[1723682581572,0.31235903,59003.0,59002.0,0.00013249]
[1723682582769,0.82079903,59003.0,59002.0,0.00013249]
[1723682582975,0.82900249,59003.0,59002.0,0.00013249]
[1723682583173,0.83000249,59003.0,59002.0,0.00413249]
[1723682583486,0.32156249,59003.0,59002.0,0.00413249]
[1723682583977,0.32256249,59003.0,59002.0,0.01313249]
[1723682584490,1.23100249,59003.0,59002.0,0.01313249]
[1723682584770,0.83100249,59003.0,59002.0,0.01313249]
[1723682585173,0.76336446,59003.0,59002.0,0.01313249]
[1723682585376,0.25492446,59003.0,59002.0,0.01313249]
[1723682586671,0.61572446,59003.0,59002.0,0.01313249]
[1723682590171,0.70044546,59003.0,59002.0,0.01313249]
[1723682590570,0.61572446,59003.0,59002.0,0.01313249]
[1723682591077,0.76808349,59003.0,59002.0,0.01313249]
[1723682591268,0.70044546,59003.0,59002.0,0.01313249]
[1723682592775,1.60888546,59003.0,59002.0,0.01313249]
[1723682593577,0.169458,58998.0,58997.0,0.00025419]
[1723682593782,0.700258,58998.0,58997.0,0.00025419]
[1723682593977,1.67633864,58998.0,58997.0,0.00025419]
[1723682594380,1.208738,58998.0,58997.0,0.00025419]
[1723682594582,1.12414149,58998.0,58997.0,0.00025419]
[1723682594889,0.61666149,58998.0,58997.0,0.00925419]
[1723682595681,1.12614149,58998.0,58997.0,0.00925419]
[1723682595984,0.61766149,58998.0,58997.0,0.00925419]
[1723682596686,0.61766149,58998.0,58997.0,0.09398419]
[1723682600188,0.53293249,58998.0,58997.0,0.25398419]
[1723682600396,0.66834758,58998.0,58997.0,0.00925419]
[1723682600691,0.61766149,58998.0,58997.0,0.00925419]
[1723682600879,0.68526213,58998.0,58997.0,0.00925419]
[1723682601079,0.53293249,58998.0,58997.0,0.15925419]
[1723682601286,0.58363543,58998.0,58997.0,0.24398419]
[1723682601481,0.17213249,58998.0,58997.0,0.24398419]
[1723682601877,0.17213249,58998.0,58997.0,0.75246419]
[1723682602189,0.05070294,59006.0,59005.0,0.084719]
[1723682602379,0.16,59006.0,59005.0,0.224719]
[1723682602989,0.21070294,59006.0,59005.0,0.14]
[1723682603290,0.5208,59006.0,59002.0,0.084722]
[1723682603482,0.06762016,59005.0,59002.0,0.234722]
[1723682603683,0.23762016,59005.0,59002.0,0.234722]
[1723682603987,0.05071516,59003.0,59002.0,0.234722]
[1723682604198,0.21071516,59003.0,59002.0,0.234722]
[1723682604577,0.21072349,59003.0,59002.0,0.234722]
[1723682605284,0.21172349,59003.0,59002.0,0.234722]
[1723682605485,0.161,59003.0,59002.0,0.236722]
[1723682605885,0.21172349,59003.0,59002.0,0.236722]
[1723682606091,0.161,59003.0,59002.0,0.236722]
[1723682606288,0.21172349,59003.0,59002.0,0.236722]
[1723682606691,0.161,59003.0,59002.0,0.236722]
[1723682607190,0.161,59003.0,59002.0,0.234722]
[1723682607497,0.162,59003.0,59002.0,0.236722]
[1723682611693,0.21272349,59003.0,59002.0,0.236722]
[1723682611895,0.162,59003.0,59002.0,0.236722]
[1723682612190,0.21272349,59003.0,59002.0,0.236722]
[1723682612897,0.162,59003.0,59002.0,0.236722]
[1723682614090,0.29744449,59003.0,59002.0,0.236722]
[1723682614288,0.246721,59003.0,59002.0,0.236722]
[1723682617793,0.29747327,59003.0,59002.0,0.236722]
[1723682618487,0.246721,59003.0,59002.0,0.236722]
[1723682618695,0.29747327,59003.0,59002.0,0.236722]
[1723682619290,0.246721,59003.0,59002.0,0.236722]
[1723682619496,0.29747327,59003.0,59002.0,0.236722]
[1723682620397,0.29747327,59003.0,59002.0,0.152]
[1723682620701,0.246721,59003.0,59002.0,0.152]
[1723682620894,0.29747043,59003.0,59002.0,0.152]
[1723682621496,0.331442,59003.0,59002.0,0.152]
[1723682621796,0.084737,58992.0,58991.0,0.06687472]
[1723682622015,0.244737,58992.0,58991.0,0.14]
[1723682623003,0.246737,58992.0,58991.0,0.146]
[1723682624091,0.246737,58992.0,58991.0,0.230739]
[1723682629208,0.246737,58992.0,58991.0,0.146]
[1723682631400,0.607537,58992.0,58991.0,0.146]
[1723682631805,0.246737,58992.0,58991.0,0.146]
[1723682633301,0.246737,58992.0,58991.0,0.230739]
[1723682633501,0.162,58992.0,58991.0,0.230739]
[1723682634102,0.162,58992.0,58991.0,0.29761372]
[1723682634416,0.162,58992.0,58991.0,4.000739]
[1723682634911,0.162,58992.0,58991.0,0.230739]
[1723682637509,0.162,58992.0,58991.0,0.29761372]
[1723682638112,0.162,58992.0,58991.0,0.234739]
[1723682639015,0.162,58992.0,58991.0,0.231739]
[1723682639512,0.162,58992.0,58991.0,0.227739]
[1723682639813,0.162,58992.0,58991.0,0.231739]
[1723682640012,0.162,58992.0,58991.0,0.228739]
[1723682640204,0.246737,58992.0,58991.0,0.230739]
[1723682641013,0.29749182,58992.0,58991.0,0.146]
[1723682641314,0.246737,58992.0,58991.0,0.146]
[1723682642416,0.293237,58992.0,58991.0,0.146]
[1723682643017,0.293237,58992.0,58991.0,0.006]
[1723682643214,0.36091009,58992.0,58991.0,0.006]
[1723682645621,0.293237,58992.0,58991.0,0.006]
[1723682645823,0.162,58992.0,58991.0,0.260739]
[1723682646131,0.21275978,58992.0,58991.0,0.260739]
[1723682646424,0.162,58992.0,58991.0,0.260739]
[1723682647019,0.246737,58992.0,58991.0,0.006]
[1723682647726,0.29750123,58992.0,58991.0,0.006]
[1723682647919,0.246737,58992.0,58991.0,0.006]
[1723682649111,0.162,58992.0,58991.0,0.230739]
[1723682649509,0.21277626,58992.0,58991.0,0.230739]
[1723682650515,0.162,58992.0,58991.0,0.230739]
[1723682651114,0.162,58992.0,58991.0,0.29761372]
[1723682651316,0.162,58992.0,58991.0,0.230739]
[1723682655428,0.246737,58992.0,58991.0,0.230739]
[1723682655619,0.607537,58992.0,58991.0,0.230739]
[1723682655929,0.67521009,58992.0,58991.0,0.230739]
[1723682656527,0.607537,58992.0,58991.0,0.230739]
[1723682656921,0.67521009,58992.0,58991.0,0.230739]
[1723682657122,0.607537,58992.0,58991.0,0.230739]
[1723682657324,0.67521009,58992.0,58991.0,0.230739]
[1723682657522,0.607537,58992.0,58991.0,0.230739]
[1723682657828,0.246737,58992.0,58991.0,0.230739]
[1723682658330,0.31441009,58992.0,58991.0,0.230739]
[1723682658523,0.246737,58992.0,58991.0,0.230739]
[1723682660029,0.31441009,58992.0,58991.0,0.230739]
[1723682662917,0.22967309,58992.0,58991.0,0.230739]
[1723682663121,0.21280078,58992.0,58991.0,0.46735531]
[1723682663323,0.06767309,59000.0,58997.0,0.08473]
[1723682663531,0.15,58998.0,58997.0,0.22473]
[1723682663732,0.20079,58998.0,58997.0,0.22473]
[1723682663929,0.15,58998.0,58997.0,0.22473]
[1723682664925,0.15,58998.0,58997.0,0.22673]
[1723682665527,0.15,58998.0,58997.0,0.22873]
[1723682668027,0.316729,58998.0,58997.0,0.144]
[1723682668233,0.74520209,58998.0,58997.0,0.144]
[1723682668432,0.677529,58998.0,58997.0,0.22873]
[1723682669333,0.68590173,58998.0,58997.0,0.22873]
[1723682669741,0.08474,58991.0,58989.0,0.08474]
[1723682669940,0.17664,58990.0,58989.0,0.15]
[1723682670147,0.32664,58990.0,58989.0,0.15]
[1723682670630,1.15046,58990.0,58986.0,0.00025419]
[1723682670832,0.084756,58979.0,58975.0,0.06713315]
[1723682671132,0.084766,58972.0,58966.0,0.06713315]
[1723682671332,0.339532,58972.0,58962.0,0.06713315]
[1723682671544,0.32240586,58972.0,58961.0,0.23732]
[1723682671934,0.32240586,58972.0,58966.0,0.00025419]
[1723682672435,0.255766,58972.0,58971.0,0.00313462]
[1723682672627,0.171,58972.0,58971.0,0.00313462]
[1723682673024,0.171,58972.0,58971.0,0.08790162]
[1723682674228,0.172,58972.0,58971.0,0.08790162]
[1723682675630,0.172,58972.0,58971.0,0.61870162]
[1723682675943,0.172,58972.0,58971.0,0.82380162]
[1723682676934,0.172,58972.0,58971.0,0.83229722]
[1723682677834,0.172,58972.0,58971.0,0.82380162]
[1723682679135,0.172,58972.0,58971.0,0.46300162]
[1723682680050,0.172,58972.0,58971.0,0.08790162]
[1723682680541,0.256766,58972.0,58971.0,0.00313462]
[1723682681536,0.172,58972.0,58971.0,0.08790162]
[1723682682072,0.172,58972.0,58971.0,0.37776862]
[1723682682235,0.172,58972.0,58971.0,0.44300162]
[1723682683745,0.172,58972.0,58971.0,0.52776862]
[1723682685143,0.172,58972.0,58971.0,0.44300162]
[1723682685537,0.172,58972.0,58971.0,0.52776862]
[1723682686136,0.172,58972.0,58971.0,0.44300162]
[1723682686338,0.172,58972.0,58971.0,0.52776862]
[1723682687548,0.3608,58993.0,58992.0,0.084737]
[1723682687740,0.5308,58993.0,58992.0,0.244737]
[1723682688841,0.17,58993.0,58992.0,0.244737]
[1723682689634,0.178,58993.0,58992.0,0.244737]
[1723682689842,0.186,58993.0,58992.0,0.244737]
[1723682690644,0.178,58993.0,58992.0,0.244737]
[1723682690834,0.175,58993.0,58987.0,0.00025419]
[1723682691040,0.175,58993.0,58987.0,0.15025419]
[1723682691338,0.175,58993.0,58991.0,0.084737]
[1723682691738,0.259736,58993.0,58991.0,0.084737]
[1723682692942,0.172,58993.0,58992.0,0.084737]
[1723682693143,0.172,58993.0,58992.0,0.234737]
[1723682693144,0.17,58993.0,58992.0,0.234737]
[1723682693849,0.172,58993.0,58992.0,0.234737]
[1723682694642,0.175,58993.0,58992.0,0.234737]
[1723682696847,0.173,58993.0,58992.0,0.238737]
[1723682697057,0.171,58993.0,58992.0,0.238737]
[1723682697348,0.172,58993.0,58992.0,0.241737]
[1723682701951,0.00025419,58998.0,58992.0,1.150257]
[1723682702152,0.3608,59013.0,59010.0,0.084711]
[1723682702450,0.5308,59013.0,59012.0,0.084708]
[1723682702651,0.5308,59013.0,59012.0,0.244708]
[1723682703354,0.5448,59013.0,59012.0,0.244708]
[1723682703544,0.5588,59013.0,59012.0,0.244708]
[1723682705251,0.5588,59013.0,59012.0,1.683284]
[1723682705252,0.198,59013.0,59012.0,1.683284]
[1723682705450,0.028,59013.0,59012.0,1.598576]
[1723682705653,0.028,59013.0,59012.0,0.605508]
[1723682706141,0.128,59013.0,59012.0,0.605508]
[1723682706657,0.116,59013.0,59012.0,0.606508]
[1723682706851,0.016,59013.0,59012.0,1.599576]
[1723682707149,0.016,59013.0,59012.0,1.052708]
[1723682707356,0.016,59013.0,59012.0,0.606508]
[1723682710456,0.126,59013.0,59012.0,0.606508]
[1723682713851,0.126,59013.0,59012.0,0.691216]
[1723682715266,0.126,59013.0,59012.0,0.606508]
[1723682715650,0.126,59013.0,59012.0,0.691216]
[1723682716060,0.126,59013.0,59012.0,0.161]
[1723682716061,0.210707,59013.0,59012.0,0.161]
[1723682717265,0.126,59013.0,59012.0,0.245708]
[1723682717764,0.126,59013.0,59012.0,0.450808]
[1723682718557,0.126,59013.0,59012.0,0.245708]
[1723682718764,0.210707,59013.0,59012.0,0.161]
[1723682720149,0.210707,59013.0,59012.0,0.245708]
[1723682720556,0.126,59013.0,59012.0,0.245708]
[1723682721460,0.126,59013.0,59012.0,0.691216]
[1723682721660,0.126,59013.0,59012.0,0.330416]
[1723682722051,0.4868,59013.0,59012.0,0.245708]
[1723682722252,0.571507,59013.0,59012.0,0.245708]
[1723682722458,0.210707,59013.0,59012.0,0.245708]
[1723682722962,0.084713,59009.0,59000.0,0.41086916]
[1723682723264,0.3608,59001.0,58993.0,0.084736]
[1723682723455,0.3608,58995.0,58989.0,0.08474]